bitfinex/quotes_ETHUSD_20241217
["timestamp","ask_amount","ask_price","bid_price","bid_amount"]
[1734402687410,0.7772,4011.8,4009.9,1.15131238]
[1734402687763,0.7772,4011.8,4009.9,0.07939535]
[1734402687962,0.7772,4011.8,4009.5,0.30594647]
[1734402687963,0.7772,4011.7,4009.5,0.30594647]
[1734402688171,0.7772,4011.4,4009.6,0.5132814]
[1734402688354,0.7772,4011.4,4009.5,0.30594647]
[1734402688663,0.7772,4011.4,4009.5,0.43099588]
[1734402689334,0.7772,4011.3,4009.5,0.12504941]
[1734402689534,0.7772,4011.2,4009.9,3.0]
[1734402689761,0.7772,4011.2,4009.2,0.12156347]
[1734402689965,0.7772,4011.2,4009.3,0.84667487]
[1734402690128,0.7772,4011.2,4009.3,1.15262134]
[1734402690462,0.7772,4011.2,4009.2,0.12156347]
[1734402690463,0.7772,4011.2,4009.4,1.17748761]
[1734402690664,0.7772,4011.1,4009.4,0.33088165]
[1734402691167,0.7772,4011.1,4009.4,0.30594647]
[1734402692274,0.7772,4011.5,4010.1,0.7988]
[1734402692421,0.7772,4011.5,4010.2,1.29082647]
[1734402692833,0.7772,4011.5,4010.3,0.07943891]
[1734402693065,0.7772,4011.5,4010.4,0.55]
[1734402693261,0.7772,4011.5,4010.5,0.48408265]
[1734402693664,0.7772,4011.5,4010.6,0.02492778]
[1734402693868,0.7772,4011.5,4010.5,0.48408265]
[1734402694495,0.7772,4011.5,4011.0,3.0]
[1734402695000,0.7772,4011.5,4010.5,0.48408265]
[1734402695180,0.7772,4011.5,4010.4,0.12708258]
[1734402695354,0.7772,4011.5,4010.5,0.02492928]
[1734402695697,0.7772,4011.5,4010.3,0.55]
[1734402695864,0.7772,4011.5,4010.4,0.28333696]
[1734402696067,0.7772,4011.5,4011.0,3.0]
[1734402696398,0.7772,4011.5,4010.4,0.20378768]
[1734402696768,0.7772,4011.5,4010.2,0.56212512]
[1734402696971,0.7772,4011.5,4010.3,0.0795998]
[1734402697174,0.7772,4011.5,4010.1,3.0]
[1734402697370,0.7772,4011.5,4010.2,0.07961384]
[1734402697587,0.7772,4011.5,4009.9,0.12764727]
[1734402697915,0.7772,4011.5,4010.0,0.07970085]
[1734402698085,0.7772,4011.5,4009.9,0.12764727]
[1734402698086,0.7772,4011.5,4010.5,3.0]
[1734402698286,0.7772,4011.5,4010.6,0.3]
[1734402698490,0.7772,4011.5,4009.9,0.12764727]
[1734402698673,0.7772,4011.5,4010.0,0.07973803]
[1734402698877,0.7772,4011.5,4010.5,3.0]
[1734402699216,0.7772,4011.5,4010.6,0.3]
[1734402699414,0.7772,4011.5,4009.9,0.12764727]
[1734402699615,0.7772,4011.5,4010.0,2.19869949]
[1734402699815,0.7772,4011.5,4010.1,0.07973219]
[1734402700017,0.7772,4011.5,4010.2,0.07973219]
[1734402700218,0.7772,4011.5,4010.3,0.07973219]
[1734402700540,0.7772,4011.5,4010.4,0.07973219]
[1734402700681,0.7772,4011.5,4010.0,0.55]
[1734402700875,0.7772,4011.5,4010.1,0.07975054]
[1734402701072,0.7772,4011.5,4010.2,0.07975054]
[1734402701403,0.7772,4011.5,4010.3,0.07975054]
[1734402701606,0.7772,4011.5,4010.4,0.07975054]
[1734402701821,0.7772,4011.5,4009.9,0.6527885]
[1734402702112,0.7772,4011.5,4010.0,1.40819688]
[1734402702320,0.7772,4011.5,4010.1,0.07977787]
[1734402702519,0.7772,4011.5,4010.2,0.07977787]
[1734402702736,0.7772,4011.5,4009.5,0.30594647]
[1734402702737,0.7772,4011.4,4009.5,0.30594647]
[1734402702895,0.7772,4011.3,4009.6,0.26271265]
[1734402703082,0.7772,4011.3,4009.7,0.38577341]
[1734402703481,0.7772,4011.3,4010.0,3.0]
[1734402703784,0.7772,4011.3,4009.9,3.0]
[1734402704398,0.7772,4011.3,4009.9,3.30594647]
[1734402704598,0.7772,4011.3,4010.0,0.62984711]
[1734402704889,0.7772,4011.3,4010.1,0.07984711]
[1734402705094,0.7772,4011.3,4010.2,0.07984711]
[1734402705295,0.7772,4011.3,4009.7,0.8158]
[1734402705495,0.7772,4011.3,4009.8,0.57654959]
[1734402705680,0.7772,4011.3,4009.9,3.07983588]
[1734402705884,0.7772,4011.3,4009.3,0.30594647]
[1734402706115,0.7772,4011.3,4009.4,0.07986797]
[1734402706276,0.7772,4011.3,4009.5,0.0798543]
[1734402706481,0.7772,4011.3,4009.9,3.0]
[1734402706921,0.7772,4011.3,4010.0,0.3]
[1734402707126,2.10010848,4012.7,4010.1,1.68623172]
[1734402707281,2.10010848,4012.7,4010.2,6.07983441]
[1734402707481,0.07746893,4013.0,4010.4,4.57806755]
[1734402707682,2.10010848,4012.7,4010.6,3.0]
[1734402707881,2.10010848,4012.7,4010.7,0.07984669]
[1734402708179,2.10010848,4012.7,4010.8,0.07984669]
[1734402708473,2.10010848,4012.7,4010.9,0.07984669]
[1734402708633,2.10010848,4012.7,4011.0,0.07984669]
[1734402708835,2.10010848,4012.7,4010.6,0.1270859]
[1734402709049,2.10010848,4012.7,4010.3,0.7587]
[1734402709050,2.10010848,4012.7,4010.7,0.07977642]
[1734402709253,2.10010848,4012.7,4011.1,3.0]
[1734402709254,0.22637524,4012.4,4011.1,3.0]
[1734402709447,0.22637524,4012.4,4010.4,0.53742364]
[1734402709448,0.22637524,4012.4,4010.4,0.87570344]
[1734402709659,0.22637524,4012.4,4010.5,0.55]
[1734402709836,0.22637524,4012.4,4010.6,0.07978052]
[1734402710044,0.22637524,4012.4,4010.7,0.07978052]
[1734402710330,0.8149,4012.3,4011.0,3.0]
[1734402710556,0.8149,4012.3,4011.0,0.3]
[1734402710773,0.8149,4012.2,4010.3,0.1243354]
[1734402711072,0.8149,4012.2,4010.4,0.9279528]
[1734402711369,0.8149,4012.2,4010.5,0.07977706]
[1734402711664,0.8149,4012.2,4010.6,0.07977706]
[1734402711877,0.8149,4012.0,4010.3,0.6219408]
[1734402712075,0.8149,4012.0,4010.4,0.07979339]
[1734402712274,0.8149,4012.0,4010.5,0.07979339]
[1734402712435,0.8149,4012.0,4010.6,0.07979339]
[1734402712630,0.8149,4012.0,4010.3,0.6219408]
[1734402712846,0.8149,4012.0,4010.4,0.62276789]
[1734402713174,0.8149,4012.0,4010.5,0.92878886]
[1734402713350,0.8149,4012.0,4010.6,0.92878886]
[1734402713533,0.8149,4012.9,4010.8,0.55]
[1734402713735,2.10010848,4013.4,4011.0,1.02557565]
[1734402713966,0.8149,4012.4,4011.1,3.10472765]
[1734402714141,0.8149,4012.4,4011.2,5.20339051]
[1734402714361,0.8149,4012.4,4011.4,3.0]
[1734402714779,0.8149,4012.4,4011.1,1.02557565]
[1734402714998,0.8149,4012.4,4011.2,3.92894507]
[1734402715150,0.8149,4012.4,4011.3,5.20275341]
[1734402715351,0.8149,4012.4,4011.4,0.92894507]
[1734402715578,0.8149,4012.4,4011.1,1.02557565]
[1734402715765,0.8149,4012.4,4011.2,4.55009706]
[1734402716048,0.8149,4012.4,4011.3,5.20335246]
[1734402716283,0.8149,4012.4,4011.4,0.92919536]
[1734402716589,0.8149,4012.4,4011.2,1.64648478]
[1734402716801,0.8149,4012.4,4011.3,5.20358892]
[1734402716960,0.8149,4012.4,4011.4,5.90127207]
[1734402717163,0.8149,4012.4,4011.4,0.69768315]
[1734402718099,0.8149,4012.4,4011.5,0.84958966]
[1734402718952,0.8149,4012.4,4011.4,0.69768315]
[1734402719260,0.8149,4012.4,4011.5,0.84962259]
[1734402719484,0.8149,4012.4,4011.5,1.40691073]
[1734402719665,0.8149,4012.4,4011.5,0.55728814]
[1734402719869,0.8149,4012.4,4011.1,4.15233341]
[1734402720109,0.8149,4012.4,4011.2,5.20417826]
[1734402720311,0.8149,4012.4,4011.3,5.12446341]
[1734402720510,0.8149,4012.4,4010.8,1.02557565]
[1734402720722,0.8149,4012.4,4010.9,0.85025285]
[1734402720881,0.8019,4012.2,4010.9,0.21486886]
[1734402722310,0.8019,4012.2,4011.0,0.85061536]
[1734402723216,0.8019,4012.2,4011.1,0.85061536]
[1734402723430,0.8019,4012.2,4011.0,3.0]
[1734402723565,0.8019,4012.2,4010.9,1.24044451]
[1734402723566,0.8019,4012.8,4011.2,3.64515218]
[1734402723770,0.8019,4012.4,4011.3,2.12675548]
[1734402724068,0.8019,4012.4,4011.4,2.12675548]
[1734402724372,0.8019,4012.4,4011.2,1.34276469]
[1734402724570,0.8019,4012.4,4011.3,2.75659394]
[1734402724768,0.8019,4012.4,4011.4,0.85043067]
[1734402724991,0.8019,4012.4,4011.4,5.12608677]
[1734402725192,0.8019,4012.4,4011.3,0.63051726]
[1734402725505,0.8019,4012.4,4011.4,2.7450636]
[1734402725707,0.8019,4012.4,4011.5,5.12560127]
[1734402725918,0.8019,4012.4,4011.6,5.12560127]
[1734402726205,0.8019,4012.4,4011.6,3.0]
[1734402726513,0.8019,4012.4,4011.7,0.85004597]
[1734402726717,0.8019,4012.4,4011.4,1.56530829]
[1734402726923,0.8019,4012.4,4011.6,3.0]
[1734402727140,0.8019,4012.4,4011.5,0.65448693]
[1734402727422,0.8019,4012.4,4011.6,0.7897]
[1734402727627,0.8019,4012.4,4011.5,0.65448693]
[1734402728185,0.8019,4012.4,4011.2,5.25647317]
[1734402728435,0.8019,4012.4,4011.3,5.20449517]
[1734402728631,0.8019,4012.4,4011.4,3.84991839]
[1734402728840,0.8019,4012.4,4011.2,4.23089752]
[1734402729041,0.8019,4012.4,4011.3,5.12485557]
[1734402729344,0.8019,4012.4,4011.4,4.63047955]
[1734402729561,0.8019,4012.4,4011.4,3.78053732]
[1734402729719,0.8019,4012.4,4011.4,0.78053732]
[1734402732004,0.8019,4012.4,4011.2,0.44119752]
[1734402732832,0.1337739,4012.5,4011.9,1.81527565]
[1734402733045,0.1337739,4012.5,4012.1,3.0]
[1734402733209,0.1337739,4012.5,4012.2,2.79375423]
[1734402733409,0.07746893,4013.0,4012.3,3.09159505]
[1734402733608,0.07746893,4013.0,4012.4,0.87439144]
[1734402733840,0.07746893,4013.0,4012.4,0.02491832]
[1734402734152,0.07746893,4013.0,4012.3,0.31718904]
[1734402734378,0.8019,4012.9,4012.3,0.31718904]
[1734402734595,0.8019,4012.9,4011.5,1.81527565]
[1734402734875,0.8019,4012.9,4011.6,1.24867183]
[1734402735076,0.8019,4012.9,4011.6,0.39987913]
[1734402735372,0.8019,4012.9,4011.7,0.84878068]
[1734402735940,0.8019,4012.9,4011.6,0.39987913]
[1734402736970,0.8019,4012.9,4011.2,0.81462442]
[1734402737273,0.8019,4012.9,4011.3,0.07975298]
[1734402737476,0.8019,4012.9,4011.4,0.02492443]
[1734402737981,0.6519,4012.9,4011.4,0.02492443]
[1734402738332,0.6519,4012.9,4011.3,0.02492442]
[1734402738533,0.6519,4012.9,4011.4,0.57066587]
[1734402739440,0.6519,4012.9,4011.5,0.0249244]
[1734402739775,0.6519,4012.9,4011.4,0.57066587]
[1734402740756,0.6519,4012.9,4011.1,0.74123349]
[1734402741061,0.6519,4012.9,4011.2,0.84958684]
[1734402741261,0.6519,4012.9,4011.1,0.74123349]
[1734402741433,0.6519,4012.9,4011.2,0.92969205]
[1734402741633,0.6519,4012.9,4011.1,0.42404445]
[1734402741837,0.6519,4012.9,4011.2,1.49443568]
[1734402742048,0.6519,4012.9,4011.2,0.56474579]
[1734402742243,0.7819,4012.8,4011.3,0.07985053]
[1734402742460,0.7819,4012.8,4011.2,0.56474579]
[1734402742691,0.7819,4012.8,4011.3,0.07985521]
[1734402742885,0.7819,4012.8,4011.4,0.07985397]
[1734402743196,0.7819,4012.8,4011.2,0.56474579]
[1734402743389,0.7819,4012.8,4011.3,1.43331621]
[1734402743591,0.7819,4012.8,4011.4,0.07986957]
[1734402743889,0.7819,4012.8,4011.3,0.50354592]
[1734402745310,2.17757741,4013.0,4010.5,1.77827565]
[1734402745311,0.7819,4012.5,4010.5,1.77827565]
[1734402745457,2.49252,4012.0,4010.6,2.20607894]
[1734402745799,0.756997,4011.9,4010.7,0.40307165]
[1734402745998,0.756997,4011.9,4010.8,0.07990619]
[1734402746169,0.756997,4011.9,4010.4,1.02557565]
[1734402746507,0.756997,4011.9,4010.5,0.9308226]
[1734402746805,2.10010848,4012.2,4010.1,1.02557565]
[1734402746968,2.49272,4011.7,4010.2,0.93106126]
[1734402747161,2.49272,4011.7,4010.3,0.28368047]
[1734402747162,2.49278,4011.6,4010.3,0.28368047]
[1734402747362,2.49278,4011.6,4009.8,1.02557565]
[1734402747603,2.49278,4011.6,4009.9,0.8511945]
[1734402747905,0.2742052,4011.5,4010.0,1.46446877]
[1734402748104,0.2742052,4011.5,4010.0,0.18767702]
[1734402748465,2.10010848,4011.8,4009.7,1.02557565]
[1734402748663,0.7819,4011.7,4009.8,3.85111619]
[1734402748906,0.7819,4011.7,4009.9,0.85111619]
[1734402749107,0.7819,4011.2,4009.6,4.15219359]
[1734402749411,0.7819,4011.1,4009.7,1.45296854]
[1734402749611,0.7819,4011.0,4009.5,0.32796314]
[1734402749765,0.7819,4011.0,4009.6,1.36177639]
[1734402749965,0.7819,4011.0,4009.6,0.51062388]
[1734402750167,3.27504,4011.0,4009.5,0.12809355]
[1734402750400,0.7819,4010.9,4009.3,1.02557565]
[1734402750598,2.49336,4010.7,4009.3,0.12610596]
[1734402750906,2.49336,4010.7,4009.0,1.02557565]
[1734402750907,0.7819,4010.6,4009.0,1.02557565]
[1734402751067,0.7819,4010.6,4009.0,1.9017146]
[1734402751264,0.7819,4010.6,4009.1,2.12800188]
[1734402751479,0.7819,4010.6,4009.2,0.8507613]
[1734402751687,0.7819,4010.6,4009.1,0.1378477]
[1734402752479,2.49309,4011.1,4008.3,0.08066314]
[1734402752480,2.10010848,4009.5,4008.3,0.08066314]
[1734402752687,0.7819,4009.4,4008.3,0.126956]
[1734402753254,0.7819,4009.4,4007.9,1.02557565]
[1734402753407,0.7819,4009.4,4008.0,0.85007026]
[1734402753722,0.7819,4009.4,4007.7,1.02557565]
[1734402753877,0.7819,4009.4,4007.7,3.30476266]
[1734402754227,0.7819,4009.4,4007.8,2.12535066]
[1734402754433,0.7819,4009.4,4007.7,0.15383635]
[1734402754782,0.7819,4009.4,4007.2,1.02557565]
[1734402754981,0.7819,4009.4,4007.3,2.14911281]
[1734402755212,2.49446,4008.9,4006.8,1.02557565]
[1734402755423,2.10010848,4009.1,4006.4,2.34809035]
[1734402755424,0.7819,4008.7,4006.5,1.02557565]
[1734402755580,0.7819,4008.6,4006.6,1.91871439]
[1734402755781,0.7819,4008.6,4006.6,1.06952349]
[1734402756177,0.7819,4008.6,4006.6,0.7527]
[1734402756719,0.7819,4008.6,4006.2,0.12480206]
[1734402756922,0.7819,4008.6,4006.1,0.02495157]
[1734402757220,0.8113,4008.5,4006.3,0.57934654]
[1734402757426,0.8113,4008.5,4006.0,0.812]
[1734402757595,0.8113,4008.4,4006.0,0.93721481]
[1734402757984,0.29114085,4008.5,4006.0,0.93721481]
[1734402757985,0.8113,4008.1,4006.0,1.05923986]
[1734402758181,0.8113,4007.7,4006.0,0.93721481]
[1734402758838,0.8113,4007.7,4006.0,0.12521481]
[1734402758987,0.8113,4007.7,4006.1,0.0249555]
[1734402759842,0.8113,4007.7,4005.6,0.812]
[1734402759843,0.8113,4007.7,4006.7,3.0]
[1734402760046,0.8113,4007.7,4006.8,0.3]
[1734402760348,0.8113,4007.7,4006.6,3.0]
[1734402760635,0.8113,4007.7,4005.7,0.55]
[1734402761208,2.10010848,4007.4,4005.6,0.12591416]
[1734402761452,0.8113,4007.2,4005.0,0.812]
[1734402761600,2.10010848,4007.0,4005.0,0.83695897]
[1734402761952,0.8113,4006.9,4005.0,0.83695897]
[1734402762955,2.49537,4007.5,4006.0,0.55]
[1734402762956,0.8113,4007.5,4006.0,0.55]
[1734402763103,0.8113,4007.5,4006.5,0.55]
[1734402763441,0.8113,4008.4,4006.7,1.362]
[1734402763743,0.8113,4008.4,4006.9,0.55]
[1734402763909,0.8113,4008.4,4007.0,0.02494719]
[1734402764396,0.8113,4008.4,4006.8,0.57494719]
[1734402764631,0.8113,4008.4,4007.0,0.55]
[1734402765181,0.8113,4008.4,4006.8,0.55]
[1734402765378,0.8113,4008.4,4006.9,0.02494788]
[1734402765732,0.8113,4008.4,4006.8,0.55]
[1734402765929,0.8113,4008.4,4006.8,0.57494882]
[1734402766168,0.8113,4008.4,4007.0,0.55]
[1734402766367,0.8113,4008.4,4007.1,0.02494881]
[1734402768305,0.8113,4008.4,4007.0,0.55]
[1734402768473,0.8113,4008.4,4006.8,0.55]
[1734402768674,0.7854,4008.2,4006.8,0.55]
[1734402769439,0.7854,4008.2,4006.3,0.02495066]
[1734402769440,0.7854,4008.2,4006.3,0.55]
[1734402769657,0.7854,4008.2,4006.4,0.02495066]
[1734402770333,0.7854,4008.2,4007.1,3.0]
[1734402770532,0.7854,4008.2,4007.2,0.32494886]
[1734402771875,0.7854,4008.2,4007.2,0.02494886]
[1734402772090,0.7854,4008.2,4007.2,3.02494886]
[1734402772298,0.7854,4008.2,4007.2,0.02494886]
[1734402772498,0.7854,4008.2,4007.2,3.8105]
[1734402772701,0.7854,4008.2,4007.3,0.02494805]
[1734402772862,2.10010848,4009.1,4007.4,0.38354481]
[1734402773190,2.10010848,4009.1,4006.7,0.93710324]
[1734402773191,2.10010848,4009.1,4007.2,3.0]
[1734402773363,2.10010848,4009.1,4006.8,0.57494758]
[1734402773887,2.10010848,4009.1,4007.3,3.0]
[1734402774087,2.10010848,4009.1,4006.8,0.57494758]
[1734402774298,2.31011933,4009.1,4007.0,0.55]
[1734402774447,2.31011933,4009.1,4007.1,0.02494759]
[1734402774652,2.31011933,4009.1,4007.3,3.0]
[1734402775188,2.31011933,4009.1,4007.1,0.02494759]
[1734402775390,2.31011933,4009.1,4007.4,3.0]
[1734402775595,2.31011933,4009.1,4007.5,0.32494759]
[1734402776095,0.7854,4009.0,4007.5,0.02494759]
[1734402776252,0.7854,4009.0,4007.5,0.8105]
[1734402776453,0.7854,4009.0,4007.1,0.8105]
[1734402776679,0.7854,4009.0,4007.4,3.0]
[1734402777052,0.7854,4009.0,4007.2,0.55]
[1734402777251,0.7854,4009.0,4007.4,0.55]
[1734402777550,0.7854,4009.0,4007.9,3.0]
[1734402777878,0.7854,4009.0,4007.5,0.0249453]
[1734402777879,0.7854,4009.0,4007.5,0.02494529]
[1734402778089,0.7854,4009.0,4008.0,3.0]
[1734402778397,0.7854,4009.0,4008.5,3.0]
[1734402778596,0.7854,4009.0,4008.1,0.32494325]
[1734402778901,0.7854,4009.0,4008.1,0.02494325]
[1734402779255,0.7854,4009.0,4008.2,0.02494293]
[1734402779679,0.7854,4009.0,4008.6,3.0]
[1734402779899,0.7854,4009.0,4008.2,0.02494293]
[1734402780268,0.7854,4009.0,4008.0,0.02494295]
[1734402780470,0.7854,4009.0,4008.1,0.15109677]
[1734402780691,0.7854,4009.0,4008.2,0.57494149]
[1734402780897,2.10010848,4010.4,4008.9,3.0]
[1734402780898,0.7837,4010.3,4008.9,3.0]
[1734402781107,0.7837,4010.3,4009.0,0.02493955]
[1734402781408,0.7837,4010.3,4008.9,3.0]
[1734402781696,0.7837,4010.1,4008.9,3.0]
[1734402782206,0.7837,4010.1,4008.3,0.02493955]
[1734402782405,0.7837,4010.1,4008.9,3.0]
[1734402783101,0.7837,4010.1,4009.0,0.02494027]
[1734402783313,0.7837,4010.1,4008.9,3.0]
[1734402783453,0.7837,4010.1,4008.3,0.02494025]
[1734402783792,0.7837,4010.0,4008.3,0.02494025]
[1734402784185,0.7837,4010.0,4009.2,3.0]
[1734402784573,0.7837,4010.0,4008.3,0.02494025]
[1734402784769,0.7837,4010.0,4008.4,0.8181]
[1734402785005,0.7837,4010.0,4009.2,3.0]
[1734402785203,0.7837,4010.0,4009.3,0.32493833]
[1734402785554,0.7837,4010.0,4009.3,0.02493833]
[1734402785761,0.7837,4010.0,4008.6,0.02493833]
[1734402787606,0.7837,4010.8,4008.8,0.55]
[1734402787813,0.7837,4010.8,4009.3,1.3681]
[1734402788021,0.7837,4010.8,4009.5,4.57557565]
[1734402788315,0.7837,4012.4,4010.0,0.55]
[1734402788459,0.7837,4012.4,4010.2,0.55]
[1734402788664,0.7837,4012.4,4010.3,2.13500993]
[1734402788974,0.7837,4012.4,4010.3,0.02492743]
[1734402789190,0.7837,4012.4,4010.4,0.16005031]
[1734402789372,0.7837,4012.4,4010.5,0.02492736]
[1734402789991,0.7837,4012.4,4011.1,3.0]
[1734402790193,0.7837,4012.4,4010.4,0.16005031]
[1734402790434,0.7837,4012.4,4010.5,0.02492736]
[1734402792094,0.7837,4012.4,4010.5,0.19164758]
[1734402792692,0.7837,4012.4,4010.4,0.02492736]
[1734402793296,0.7837,4012.0,4010.2,0.15592252]
[1734402793537,2.10010848,4012.1,4009.7,0.55]
[1734402793538,0.7837,4011.8,4009.7,0.55]
[1734402793695,0.7837,4011.6,4009.9,0.55]
[1734402793894,2.10010848,4012.1,4009.8,0.25189014]
[1734402793895,0.8112,4011.4,4009.8,0.25189014]
[1734402794147,0.8112,4011.4,4009.8,0.02493047]
[1734402794621,0.8112,4011.4,4009.9,0.55]
[1734402794798,0.8112,4011.4,4010.0,0.02492809]
[1734402794993,0.8112,4011.4,4010.1,0.29693904]
[1734402795199,0.8112,4011.4,4010.2,0.57492798]
[1734402795398,0.8112,4011.4,4010.2,0.87186702]
[1734402795851,0.8112,4011.4,4010.3,0.29693904]
[1734402796007,0.8112,4011.4,4010.4,0.02492817]
[1734402796192,0.8112,4011.4,4010.4,0.32186721]
[1734402797940,0.8112,4011.4,4010.4,0.47460663]
[1734402798521,0.8112,4011.4,4010.8,3.0]
[1734402798721,0.8112,4011.4,4010.9,0.02492818]
[1734402799561,0.8112,4011.4,4010.5,0.8573341]
[1734402799711,0.8112,4011.4,4010.6,0.0249266]
[1734402800054,0.8112,4011.4,4010.9,3.0]
[1734402800714,0.8112,4011.4,4010.4,0.15273942]
[1734402800913,0.8112,4011.4,4010.2,0.55]
[1734402801166,0.8112,4011.4,4010.2,0.87186676]
[1734402801313,0.8112,4011.4,4010.3,0.29693904]
[1734402802852,0.8112,4011.4,4010.4,0.55]
[1734402803176,0.8112,4011.4,4010.5,0.16711253]
[1734402803394,0.8112,4011.4,4010.9,3.0]
[1734402803562,0.8112,4011.4,4010.5,0.26861201]
[1734402803768,0.8112,4011.4,4010.5,0.12642533]
[1734402804087,0.8112,4011.4,4010.1,0.91820878]
[1734402804088,0.8112,4011.4,4010.1,0.15850878]
[1734402804267,0.8112,4011.4,4009.6,0.7597]
[1734402804450,0.8112,4011.4,4009.7,0.84693904]
[1734402804660,0.8112,4011.4,4009.9,0.55]
[1734402804863,0.8112,4011.4,4009.9,0.84693904]
[1734402805187,0.8112,4011.4,4010.8,3.0]
[1734402805699,0.8112,4011.4,4010.0,0.32186785]
[1734402805928,0.8112,4011.4,4010.8,3.0]
[1734402806198,0.8112,4011.4,4010.9,0.02492881]
[1734402806367,0.8112,4011.4,4010.8,3.0]
[1734402806759,0.8112,4011.4,4010.1,0.02492881]
[1734402807058,0.8112,4011.4,4010.8,3.0]
[1734402807259,0.8112,4011.4,4010.9,0.02492383]
[1734402807502,0.8112,4011.4,4011.0,0.30249238]
[1734402807706,2.20252812,4013.0,4010.9,0.02492737]
[1734402807861,2.17757741,4013.0,4010.9,0.02492737]
[1734402808066,2.17757741,4013.0,4011.4,3.0]
[1734402808306,2.17757741,4013.0,4010.9,0.02492737]
[1734402808606,2.17757741,4013.0,4011.4,3.0]
[1734402808903,2.17757741,4013.0,4010.4,0.55]
[1734402808904,0.22025281,4012.9,4010.4,0.55]
[1734402809085,0.22025281,4012.9,4010.4,0.84693904]
[1734402809286,0.48897502,4012.8,4010.5,0.52818046]
[1734402810001,0.22025281,4012.9,4010.5,0.52818046]
[1734402810683,0.8112,4012.8,4010.5,0.52818046]
[1734402811259,0.8112,4012.8,4010.5,0.50325503]
[1734402811499,0.83615071,4012.7,4010.5,0.50325503]
[1734402811715,0.8112,4012.5,4010.5,0.50325503]
[1734402811863,0.8112,4012.3,4010.9,3.0]
[1734402812060,2.10010848,4012.6,4010.5,0.20631599]
[1734402812061,0.8112,4012.1,4010.5,0.20631599]
[1734402812285,0.55,4011.8,4010.0,0.29693904]
[1734402812487,0.8112,4011.3,4009.7,0.15817965]
[1734402812788,0.8112,4011.1,4009.0,0.29693904]
[1734402812974,0.8112,4011.1,4009.1,0.02493513]
[1734402813172,0.8112,4011.1,4009.1,0.32187417]
[1734402813823,0.8112,4011.1,4009.1,0.32187418]
[1734402813979,0.8112,4011.1,4009.2,0.55]
[1734402814175,0.8112,4011.1,4009.3,0.30734077]
[1734402814514,0.8112,4011.1,4009.4,0.29693904]
[1734402814726,0.8112,4011.1,4009.5,0.99658721]
[1734402814878,0.8112,4011.1,4009.6,0.29693904]
[1734402815081,0.8112,4011.1,4009.7,0.02493327]
[1734402815321,0.8112,4011.1,4010.1,3.0]
[1734402815506,0.8112,4011.1,4009.9,0.02493327]
[1734402816523,0.8112,4011.1,4009.6,0.02493329]
[1734402816815,0.8112,4011.1,4009.7,0.55]
[1734402817015,2.10010848,4012.6,4009.9,0.55]
[1734402817343,2.10010848,4012.6,4010.1,0.55]
[1734402817547,0.02495071,4012.5,4010.1,0.84693904]
[1734402817762,2.49229,4012.4,4010.1,0.84693904]
[1734402817907,0.48668563,4012.3,4010.1,0.84693904]
[1734402818113,0.02495071,4012.3,4010.1,0.84693904]
[1734402818352,0.57495071,4012.5,4010.1,0.29693904]
[1734402818566,2.49237,4012.3,4009.9,0.55]
[1734402818709,0.33168278,4012.2,4010.0,1.0390894]
[1734402818907,0.33168278,4012.2,4010.0,0.19498836]
[1734402819222,0.30673207,4012.2,4010.0,0.19498836]
[1734402819546,0.30673207,4012.2,4010.1,0.84444429]
[1734402819717,0.02495071,4012.4,4010.1,0.84444429]
[1734402819902,0.8112,4012.3,4010.1,0.84444429]
[1734402820105,0.8112,4012.1,4010.0,0.19498836]
[1734402820305,0.8112,4012.1,4010.1,0.84465046]
[1734402820507,0.8112,4012.1,4010.2,0.02493074]
[1734402820803,0.8112,4012.1,4010.0,0.19498836]
[1734402821010,0.8112,4012.1,4010.1,1.30668392]
[1734402821234,0.8112,4011.9,4010.1,0.46198027]
[1734402821434,0.8112,4011.9,4010.3,3.0]
[1734402821664,0.8112,4011.9,4009.8,0.38718149]
[1734402821929,0.8112,4011.9,4009.9,5.11303468]
[1734402822135,0.8112,4011.9,4010.0,0.84521387]
[1734402822343,0.8112,4011.9,4010.1,2.12645736]
[1734402822545,0.8112,4011.9,4010.2,1.79017003]
[1734402822834,0.8112,4011.9,4010.3,0.84554257]
[1734402823038,0.8112,4011.9,4010.3,1.15532638]
[1734402823246,0.8112,4011.9,4010.4,2.11446175]
[1734402823468,0.8112,4011.9,4010.5,2.11446175]
[1734402823774,0.8112,4011.9,4010.6,0.84554257]
[1734402823977,0.8112,4011.9,4010.4,3.93223642]
[1734402824137,0.8112,4011.9,4010.5,5.11493486]
[1734402824337,0.8112,4011.9,4010.6,5.11554506]
[1734402824531,0.8112,4011.9,4010.8,3.0]
[1734402824735,0.8112,4011.9,4010.8,0.02492751]
[1734402825160,0.8112,4011.9,4010.9,2.11574021]
[1734402825364,0.8112,4011.9,4011.0,2.14108184]
[1734402825576,0.8112,4011.9,4011.1,0.64635965]
[1734402826245,0.8112,4011.9,4010.6,1.02557565]
[1734402826446,0.8112,4011.9,4010.8,3.0]
[1734402826761,0.8112,4011.9,4010.9,5.11650845]
[1734402826961,0.8112,4011.9,4011.0,0.84660338]
[1734402827168,0.8112,4011.9,4010.8,1.02557565]
[1734402827376,0.8112,4011.9,4010.9,3.58858038]
[1734402827677,0.8112,4011.9,4011.0,5.11652893]
[1734402827842,0.8112,4011.9,4011.1,0.84661157]
[1734402828034,0.8112,4011.9,4011.0,3.0]
[1734402828236,0.8112,4011.9,4011.1,0.84683212]
[1734402828486,0.8112,4011.9,4010.9,0.58858038]
[1734402828487,0.8112,4011.9,4011.2,0.14354125]
[1734402828782,0.8112,4011.9,4010.9,1.02557565]
[1734402828935,0.8112,4011.9,4011.0,1.27077893]
[1734402829135,0.8112,4011.9,4011.1,0.84718595]
[1734402829450,0.8112,4011.9,4010.9,1.02557565]
[1734402829669,0.8112,4011.9,4011.0,1.82764472]
[1734402829852,0.8112,4011.9,4011.1,2.11875135]
[1734402830052,0.8112,4011.9,4010.6,1.02557565]
[1734402830253,0.8112,4011.9,4010.7,3.0]
[1734402830584,0.8112,4011.9,4010.6,3.0]